Cogmind - Beta 14 @@@ ROGUE MODE // 2024.11.23 @ 19:51:14 Player: skye Result: Destroyed by D-53 Grenadier with Mini Grenade Launcher Performance ------------- Evolutions (0) 0 Regions Visited (2) 400 Robots Destroyed (28) 140 Value Destroyed (418) 418 Prototype IDs (0) 0 Alien Tech Used (0) 0 Bonus (0) 0 TOTAL SCORE: 958 Bonus ------- None Cogmind --------- Core Integrity 0/250 Matter 212/300 Energy 100/100 System Corruption 0% Temperature Cool (23) Movement Core (1400) Ox27 Location -10/Mines Parts ------- > --- POWER (1) -------- (None) > --- PROPULSION (2) --- (None) > --- UTILITY (2) ------ Huge Storage Unit > --- WEAPON (2) ------- Particle Cannon > --- INVENTORY (25) --- Ion Engine Light Ion Engine Light Treads Light Treads Light Treads Large Battery (200) Medium Matter Pod (0) Structural Scanner Structural Scanner Experimental Sensor Array Signal Interpreter Terrain Scanner Improved Terrain Scanner Seismic Detector ECM Suite Propulsion Shielding Hacking Suite Hacking Suite Trap Extractor (0/4) Assault Rifle Assault Rifle Heavy Assault Rifle Datajack Mining Laser Mining Claw Peak State ------------ > --- POWER ------------ Ion Engine > --- PROPULSION ------- Wheel Wheel > --- UTILITY ---------- Huge Storage Unit Light Armor Plating > --- WEAPON ----------- Particle Cannon Heavy Assault Rifle > --- INVENTORY -------- Ion Engine Light Ion Engine Light Treads Light Treads Light Treads Large Battery Medium Matter Pod Structural Scanner Structural Scanner Experimental Sensor Array Signal Interpreter Terrain Scanner Improved Terrain Scanner Seismic Detector ECM Suite Propulsion Shielding Hacking Suite Hacking Suite Trap Extractor Assault Rifle Assault Rifle Heavy Assault Rifle Datajack Mining Laser Mining Claw [Rating: 13] Favorites ----------- Power Ion Engine Engine Ion Engine Propulsion Wheel Treads Light Treads Leg Aluminum Leg Wheel Wheel Utility Huge Storage Unit Device Improved Terrain Scanner Storage Huge Storage Unit Protection Light Armor Plating Weapon Heavy Assault Rifle Energy Gun Medium Laser Energy Cannon Particle Cannon Ballistic Gun Heavy Assault Rifle Build | -11 -10 -10 ------- Run | Yrd Mat Min Slots Evolved . | . . . Power . | . . . Propulsion . | . . . Utility . | . . . Weapon . | . . . Parts Attached 21 | 3 18 . Power 2 | . 2 . Engine 2 | . 2 . Core . | . . . Reactor . | . . . Propulsion 13 | 2 11 . Treads 6 | 2 4 . Leg . | . . . Wheel 7 | . 7 . Hover . | . . . Flight . | . . . Utility 3 | 1 2 . Device 1 | 1 . . Storage 1 | . 1 . Processor . | . . . Hackware . | . . . Protection 1 | . 1 . Artifact . | . . . Weapon 3 | . 3 . Energy Gun . | . . . Energy Cannon 2 | . 2 . Ballistic Gun 1 | . 1 . Ballistic Cannon . | . . . Launcher . | . . . Special Weapon . | . . . Impact Weapon . | . . . Slashing Weapon . | . . . Piercing Weapon . | . . . Special Melee Weapon . | . . . Unidentified Prototypes . | . . . Parts Lost 11 | . 6 5 Power 2 | . 1 1 Propulsion 6 | . 4 2 Utility 2 | . 1 1 Weapon 1 | . . 1 Highest Loss Streak 5 | . 2 5 To Critical Strikes . | . . . Average Slot Usage (%) 91 | . 91 98 Engine 13 | . 13 14 Treads 8 | . 8 . Wheel 19 | . 18 28 Device 2 | . 2 . Storage 14 | . 14 14 Protection 9 | . 9 12 Energy Gun 3 | . 4 . Energy Cannon 4 | . 4 14 Ballistic Gun 14 | . 14 14 Peak Build Rating 13 | 10 12 13 Average Rating 9 | 7 9 12 On Entrance 9 | 6 9 12 Naked Turns . | . . . Heaviest Build 95 | 14 95 95 Greatest Support 40 | 40 40 20 Greatest Overweight (x) 9 | . 9 4 Average Overweight (x) 2 | . 2 4 Largest Inventory Capacity 25 | 8 25 25 Average Capacity 22 | 8 23 25 Most Carried 25 | 8 24 25 Average Carried 15 | 6 16 24 Final Capacity 25 | 8 25 25 Final Carried 25 | 7 24 25 Class Distribution -------------------- 100% | Mutant Dominant Class ---------------- Mutant | -10/Materials Mutant | -10/Mines Resources | -11 -10 -10 ----------- Run | Yrd Mat Min Matter Collected 506 | 240 266 . Remotely . | . . . Salvage Created 734 | 115 619 . Parts 66 | 11 55 . Haulers Intercepted 2 | . 2 . Recyclers Shooed . | . . . Parts Field Recycled . | . . . Retrieved Matter . | . . . Parts Self-Destructed . | . . . Prevented . | . . . Kills | -11 -10 -10 ------- Run | Yrd Mat Min Combat Hostiles Destroyed 16 | . 16 . Guns 15 | . 15 . Classes Destroyed 9 | 3 6 . Worker 1 | 1 . . Builder 2 | . 2 . Tunneler 3 | 3 . . Hauler 2 | . 2 . Recycler 1 | 1 . . Operator 2 | . 2 . Watcher 1 | . 1 . Swarmer 9 | . 9 . Grunt 7 | . 7 . Best Kill Streak 4 | 2 4 . Combat Bots Only 4 | . 4 . Max Kills in Single Turn 2 | 1 2 . Gunslinging . | . . . Exploded . | . . . Melee . | . . . Uniques/NPCs Destroyed . | . . . Combat | -11 -10 -10 -------- Run | Yrd Mat Min Hostile Shots Fired 118 | . 100 18 Missed 30 | . 27 3 Damage Taken 1047 | . 693 354 Core 252 | . 167 85 Absorbed by Shields . | . . . Core Remaining (%) 100 | 100 . . Volleys Fired 101 | 11 88 2 Largest 2 | 2 2 1 Hottest 91 | 70 91 68 Shots Fired 132 | 22 108 2 Gun 130 | 22 107 1 Cannon 2 | . 1 1 Launcher . | . . . Special . | . . . Kinetic 100 | 11 88 1 Thermal 32 | 11 20 1 Explosive . | . . . Electromagnetic . | . . . Robot Hit Streak 13 | 7 13 . Robot Miss Streak 3 | 2 3 2 Penetration Max . | . . . Secondary Targets . | . . . Shots Hit Robots 83 | 14 69 . Core Hits 37 | 6 31 . Critical Kills 1 | . 1 . Critical Parts Destroyed 1 | . 1 . Critical Strikes 4 | 1 3 . Burn 2 | 1 1 . Meltdown 1 | . 1 . Destroy 1 | . 1 . Melee Attacks . | . . . Impact . | . . . Slashing . | . . . Piercing . | . . . Sneak Attacks . | . . . Combat Hostiles . | . . . Follow-up Attacks . | . . . Damage Inflicted 1084 | 149 935 . Guns 1064 | 149 915 . Cannons 20 | . 20 . Explosions . | . . . Melee . | . . . Ramming . | . . . Kinetic 802 | 50 752 . Thermal 282 | 99 183 . Explosive . | . . . Electromagnetic . | . . . Impact . | . . . Slashing . | . . . Piercing . | . . . Highest Corruption . | . . . Average Corruption . | . . . Corruption Purged . | . . . Corruption Blocked . | . . . Overload Shots . | . . . Overflow Damage . | . . . Projectiles . | . . . Explosions . | . . . Melee . | . . . Knockbacks . | . . . Impact . | . . . Kinetic . | . . . Secondary . | . . . Self-Inflicted Damage . | . . . Shots . | . . . Rammed . | . . . Targets Rammed . | . . . Kicked . | . . . Crushed . | . . . Highest Temperature 166 | 80 166 23 Average Temperature 48 | 37 54 23 Received Heat Transfer 240 | . 222 18 Siege Activations . | . . . Robots Corrupted . | . . . Combat Hostiles . | . . . Parts Fried . | . . . Impact Corruptions . | . . . Robots Melted 1 | . 1 . Combat Hostiles 1 | . 1 . Parts Melted 3 | . 3 . Heat Transferred 962 | 370 592 . Parts Sabotaged . | . . . Parts Stolen . | . . . Parts Stripped . | . . . Power Chain Reactions . | . . . Alert | -11 -10 -10 ------- Run | Yrd Mat Min Peak Influence 265 | 25 265 22 Initial 22 | . 16 22 Average 102 | 11 115 19 Maximum Alert Level 1 | . 1 . Low Security (%) 91 | 100 90 100 Level 1 8 | . 9 . Level 2 . | . . . Level 3 . | . . . Level 4 . | . . . Level 5 . | . . . High Security . | . . . Max Security . | . . . Squads Dispatched 2 | . 2 . Investigation . | . . . Extermination . | . . . Reinforcement 2 | . 2 . Assault . | . . . Garrison . | . . . Intercept . | . . . Searches Triggered . | . . . Construction Impeded . | . . . Haulers Reinforced . | . . . Active Scanning Responses . | . . . Cargo Convoy Interrupts . | . . . Stealth | -11 -10 -10 --------- Run | Yrd Mat Min Distress Signals . | . . . Communications Jammed . | . . . Distress Signals . | . . . Times Spotted 37 | . 31 6 Peak Tracking Total 6 | . 6 5 Tactical Retreats 1 | . 1 . Traps | -11 -10 -10 ------- Run | Yrd Mat Min Traps Triggered . | . . . Indirectly . | . . . Trap Hack Attempts . | . . . Triggered . | . . . Disarmed . | . . . Reprogrammed . | . . . Reused . | . . . Traps Extracted . | . . . Installed . | . . . Triggered . | . . . Machines | -11 -10 -10 ---------- Run | Yrd Mat Min Machines Disabled . | . . . Max in Single Turn . | . . . Machines Repaired . | . . . Machines Dismantled . | . . . Machines Sabotaged . | . . . Overloaded Fab Kills . | . . . Hacking | -11 -10 -10 --------- Run | Yrd Mat Min Machines Accessed 6 | . 6 . Terminals 6 | . 6 . Fabricators . | . . . Repair Stations . | . . . Recycling Units . | . . . Scanalyzers . | . . . Garrison Access . | . . . Total Hacks 19 | . 19 . Successful 9 | . 9 . Failed 9 | . 9 . Catastrophic 1 | . 1 . Database Lockouts 1 | . 1 . Manual 17 | . 17 . Terminals 19 | . 19 . Fabricators . | . . . Repair Stations . | . . . Recycling Units . | . . . Scanalyzers . | . . . Garrison Access . | . . . Terminal Hacks 3 | . 3 . Part Schematic 1 | . 1 . Terminal Index 1 | . 1 . Zone Layout 1 | . 1 . Fabricator Hacks . | . . . Repair Station Hacks . | . . . Recycling Unit Hacks . | . . . Scanalyzer . | . . . Garrison Access Hacks . | . . . Unauthorized Hacks 6 | . 6 . Terminals 6 | . 6 . Botnet 6 | . 6 . Fabricators . | . . . Repair Stations . | . . . Recycling Units . | . . . Scanalyzers . | . . . Garrison Access . | . . . Data Cores Recovered . | . . . Used . | . . . Hacking Detections 6 | . 6 . Full Trace Events . | . . . Feedback Events . | . . . Feedback Blocked . | . . . Robot Schematics Acquired . | . . . Robots Built . | . . . Authchips . | . . . Time . | . . . Total Robot Build Rating . | . . . Part Schematics Acquired 1 | . 1 . Parts Built . | . . . Authchips . | . . . Time . | . . . Total Part Build Rating . | . . . Parts Repaired . | . . . Time . | . . . Parts Recycled . | . . . Recycled Matter . | . . . Retrieved Matter . | . . . Retrieved Components . | . . . Parts Scanalyzed . | . . . Part Schematics Acquired . | . . . Parts Damaged . | . . . Bothacking | -11 -10 -10 ------------ Run | Yrd Mat Min Used RIF Installer . | . . . Robots Hacked . | . . . Non-combat . | . . . Combat . | . . . Robot Hacks Applied . | . . . Relay Couplers Released . | . . . Fabnet Peak Effective % . | . . . Robots Rewired . | . . . Allies Hacked . | . . . Hacks Repelled . | . . . Allies | -11 -10 -10 -------- Run | Yrd Mat Min Total Allies . | . . . Largest Group . | . . . Highest-Rated Group . | . . . Highest-Rated Ally . | . . . Total Orders . | . . . Ally Attacks . | . . . Total Damage . | . . . Kills . | . . . Allies Corrupted . | . . . Allies Melted . | . . . Intel | -11 -10 -10 ------- Run | Yrd Mat Min Robot Analysis Total . | . . . Derelict Logs Recovered . | . . . Drone Launches . | . . . Drone Recoveries . | . . . Exploration | -11 -10 -10 ------------- Run | Yrd Mat Min Turns Passed 1527 | 116 1327 84 Spaces Moved 758 | 46 655 57 Core . | . . . Treads 186 | 45 141 . Legs 1 | 1 . . Wheels 571 | . 514 57 Hover . | . . . Flight . | . . . Fastest Speed 120 | 120 130 140 Average Speed 161 | 159 163 140 Slowest Speed 480 | 160 480 140 Overloaded Moves . | . . . Propulsion Burnouts . | . . . Robots Hopped . | . . . Cave-ins Triggered . | . . . Exploration Rate (%) 37 | 4 88 21 Regions Visited 2 Branch Regions 1 Pre-discovered Areas . | . . . Known Exits Taken . | . . . Unknown Exits Taken 2 | 1 1 . Scrap Searched . | . . . Spaces Dug . | . . . Terrain Destroyed . | . . . Melee . | . . . Projectile . | . . . AOE . | . . . Terrain Rammed . | . . . Walls Destroyed . | . . . Machines Disabled . | . . . Actions | -11 -10 -10 --------- Run | Yrd Mat Min Total 934 | 69 805 60 Wait 15 | 5 10 . Move 756 | 45 654 57 Hop . | . . . Pick Up 29 | 3 25 1 Fast Attach 3 | 1 2 . Attach 6 | . 6 . Detach 2 | . 2 . Swap 12 | 2 10 . Drop 10 | 2 8 . Fire 101 | 11 88 2 Melee . | . . . Ram . | . . . Kick . | . . . Crush . | . . . Escape Stasis . | . . . Rewire . | . . . Trap . | . . . Miscellaneous . | . . . Route ------- -11/Scrapyard -10/Materials (discovered 4 exits: [*Mat x3] / [*Min]) -10/Mines History --------- Turn | Location | Event 1 | -11/Scrapyard | Discovered new exit (range 3) 117 | -11/Scrapyard | Entered Materials 301 | -10/Materials | Build established: Mutant 534 | -10/Materials | Discovered new exit (range 14) 666 | -10/Materials | Central database locked down 859 | -10/Materials | Discovered new exit (range 15) 1025 | -10/Materials | Discovered new exit (range 12) 1026 | -10/Materials | Core integrity fell below 50% 1412 | -10/Materials | Discovered new exit (range 16) 1444 | -10/Materials | Entered Mines 1478 | -10/Mines | Found a damaged Exp. Sensor Array with a note attached 1481 | -10/Mines | Found Prototype Device 1490 | -10/Mines | Assembled infested the area 1524 | -10/Mines | Joined a pair of Derelicts in attacking an 0b10 outpost 1528 | -10/Mines | Core integrity fell below 20% 1528 | -10/Mines | Destroyed by D-53 Grenadier with Mini Grenade Launcher Last Messages --------------- sneaking around Materials again, ha." 01481_ Acquired Prototype Device. 01490_ ALERT: Infestation in the mines, dispatching Demolisher response squad. 01512_ Lgt. Armor Plating destroyed. 01523_ C-30 ARC bursts open, deploying its payload. 01523_ D-53 Grenadier unfolds itself. 01524_ A derelict emerges from the shadows: "We've had our eye on this brand new outpost for a little while, just waiting for an opportunity to strike. Need some help?" 01524_ as-93021 sneak attacks. 01524_ T-07 Excavator destroyed. 01524_ Wheel destroyed. 01524_ as-93021 destroyed. 01526_ Hvy. Assault Rifle destroyed. 01526_ H5-N38(g) destroyed. 01528_ Ion Engine destroyed. 01528_ Wheel destroyed. Map ----- +----------------------------------------------------+ | | | | | ??????????????????????????????????????????????? | | ???????###????????????????????????????????????? | | ??????## ######??????????????????????????????? | | ??????# ######?????????????????????????? | | ?????## ##????????????????????????? | | ????## #????????????????????????? | | ????# #????????????????????????? | | ????# ##???????????????????????????? | | ????## ##????????????????????????????? | | ?????## ##?????????????????????????????? | | ??????# #####??????????????????????????????? | | ??????# ##??????????????????????????????????? | | ??????# ##???????????????????????????????????? | | ???#### #?????????????????????????????###????? | | ??## # #???????????????????????????? ?????? | | ??# ###########????????????????? #??????? | | ??# ## ########?????????# ##?????? | | ??# ########## #?????? | | ??# #### #??????? | | ??# ##### ## # ########## #??????? | | ??## ###???### ##???????? #??????? | | ???## ##??????## * #????????? #??????? | | ????## ##??????##![ a#####?????? #??????? | | ?????####???????#"![ @ #??????? #??????? | | ????????????????# Y #?????? #??????? | | ????????????????#Y =%g #???????#??????? | | ????????????????#"!] = $ ???????????? | | ????????????????##]! # ?????????? | | ?????????????????######d ## # ?????????? | | ?????????????????????? #??#??#?????????? | | ?????????????????????? #???????????????? | | ?????????????????????? d ??????????????? | | ?????????????????????# # ###?????????????? | | ?????????????????????# ## ##???????????????? | | ?????????????????????#% #?####????????????????? | | ?????????????????????# #?????????????????????? | | ?????????????????????? ??????????????????????? | | ?????????????????????? ??????????????????????? | | ??????????????????????????????????????????????? | | ??????????????????????????????????????????????? | | ??????????????????????????????????????????????? | | ??????????????????????????????????????????????? | | ??????????????????????????????????????????????? | | ??????????????????????????????????????????????? | | ??????????????????????????????????????????????? | | ??????????????????????????????????????????????? | | ??????????????????????????????????????????????? | | ??????????????????????????????????????????????? | +----------------------------------------------------+ Best States ------------- Heat Dissipation 25 Energy Generation 10 Energy Capacity 250 Matter Stores 300 Matter Capacity 300 Sight Range 16 Terrain Scan Range 16 Terrain Scan Density 10 Armor Coverage 150 Evasion (%) 40 Recoil Reduction 2 Item Schematics ----------------- Sml. Storage Unit | -10/Materials | Hacked Robot Schematics ------------------ None Fabricated ------------ Nothing Alien Tech Used ----------------- None Achievements -------------- None Challenges ------------ None Game ------ Seed LobotomyBoreDissipator Manual? 0 Play Time 00:10:24 Cumulative 57.7 hours Start 2024.11.23 @ 19:41:29 End 2024.11.23 @ 19:51:14 Sessions 1 Manual Loads 0 Difficulty Rogue Special Mode None Game No. 80 Rogue 36 Adventurer 44 Explorer 0 Win Type - Total 0 Types 0/0/0/0/0/0/0/0/0 Lore% 18 Gallery% 44 Achievement% 32 Wizard Run 0 Options --------- Layout 1 ASCII 0 Keyboard 1 Movement Vi Keybinds 0 Fullscreen 1 Font 24/Terminus Map View 50x40 Zoom Use 0% Tactical HUD 1 Map Filters NONE Filters NONE Steam 1 RUN: b7d49340-3b12-4dc2-b711-eae68a62e105